[Event "Titled Tuesday Blitz November 14 Early 2023"]
[White "Fromm, Marius"]
[Black "Ashraf, Artin"]
[WhiteFideId "12993190"]
[BlackFideId "22514805"]
[WhiteElo "2631"]
[BlackElo "2923"]
[Result "0-1"]
[Round "4"]
[TimeControl "180+1"]
[Date "2023.11.14"]
[WhiteClock "0:00:06"]
[BlackClock "0:00:06"]
[Board "43"]

1. e4 {[%clk 0:03:00]}  c5 {[%clk 0:02:58]} 2. Nf3 {[%clk 0:03:01]}  d6 {[%clk 0:02:59]} 3. d4 {[%clk 0:03:01]}  cxd4 {[%clk 0:03:00]} 4. Nxd4 {[%clk 0:03:01]}  Nf6 {[%clk 0:03:01]} 5. Nc3 {[%clk 0:03:02]}  a6 {[%clk 0:03:01]} 6. g3 {[%clk 0:03:03]}  e5 {[%clk 0:02:50]} 7. Nde2 {[%clk 0:03:03]}  Be7 {[%clk 0:02:50]} 8. Bg2 {[%clk 0:03:03]}  O-O {[%clk 0:02:50]} 9. O-O {[%clk 0:03:04]}  Be6 {[%clk 0:02:51]} 10. a4 {[%clk 0:03:03]}  Nbd7 {[%clk 0:02:47]} 11. Be3 {[%clk 0:03:00]}  Rc8 {[%clk 0:02:42]} 12. h3 {[%clk 0:03:00]}  Qc7 {[%clk 0:02:42]} 13. b3 {[%clk 0:02:56]}  Qb8 {[%clk 0:02:41]} 14. a5 {[%clk 0:02:55]}  Bd8 {[%clk 0:02:34]} 15. Qd2 {[%clk 0:02:52]}  Rc6 {[%clk 0:02:25]} 16. Nd5 {[%clk 0:02:40]}  Bxd5 {[%clk 0:02:09]} 17. exd5 {[%clk 0:02:41]}  Rc8 {[%clk 0:02:10]} 18. c4 {[%clk 0:02:40]}  b6 {[%clk 0:02:06]} 19. axb6 {[%clk 0:02:29]}  Bxb6 {[%clk 0:02:05]} 20. Rxa6 {[%clk 0:02:29]}  Bxe3 {[%clk 0:02:04]} 21. Qxe3 {[%clk 0:02:29]}  Nc5 {[%clk 0:02:04]} 22. Rc6 {[%clk 0:02:17]}  Qxb3 {[%clk 0:01:23]} 23. Qxb3 {[%clk 0:02:03]}  Nxb3 {[%clk 0:01:23]} 24. Rxd6 {[%clk 0:01:46]}  Nd2 {[%clk 0:00:49]} 25. Rc1 {[%clk 0:01:40]}  Rxc4 {[%clk 0:00:30]} 26. Rxc4 {[%clk 0:01:40]}  Nxc4 {[%clk 0:00:31]} 27. Rc6 {[%clk 0:01:41]}  Na5 {[%clk 0:00:31]} 28. Rc7 {[%clk 0:01:33]}  Rd8 {[%clk 0:00:26]} 29. Nc3 {[%clk 0:01:33]}  Ne8 {[%clk 0:00:25]} 30. Re7 {[%clk 0:01:04]}  Nc4 {[%clk 0:00:23]} 31. Bf1 {[%clk 0:00:48]}  Kf8 {[%clk 0:00:22]} 32. Rc7 {[%clk 0:00:36]}  Ncd6 {[%clk 0:00:23]} 33. Kg2 {[%clk 0:00:31]}  Nf6 {[%clk 0:00:22]} 34. Bd3 {[%clk 0:00:30]}  e4 {[%clk 0:00:19]} 35. Be2 {[%clk 0:00:30]}  g6 {[%clk 0:00:19]} 36. g4 {[%clk 0:00:30]}  Rb8 {[%clk 0:00:12]} 37. g5 {[%clk 0:00:30]}  Nfe8 {[%clk 0:00:11]} 38. Rc6 {[%clk 0:00:30]}  Ke7 {[%clk 0:00:10]} 39. Kg3 {[%clk 0:00:29]}  Rb4 {[%clk 0:00:10]} 40. Kf4 {[%clk 0:00:28]}  Kd7 {[%clk 0:00:10]} 41. Bg4+ {[%clk 0:00:28]}  Ke7 {[%clk 0:00:09]} 42. Ke5 {[%clk 0:00:24]}  Nc4+ {[%clk 0:00:06]} 43. Kf4 {[%clk 0:00:24]}  Ned6 {[%clk 0:00:06]} 44. Rc7+ {[%clk 0:00:22]}  Kf8 {[%clk 0:00:07]} 45. h4 {[%clk 0:00:21]}  Kg7 {[%clk 0:00:06]} 46. Be6 {[%clk 0:00:20]}  Rb2 {[%clk 0:00:06]} 47. Nxe4 {[%clk 0:00:18]}  Re2 {[%clk 0:00:04]} 48. f3 {[%clk 0:00:15]}  Kf8 {[%clk 0:00:04]} 49. Nxd6 {[%clk 0:00:12]}  Nxd6 {[%clk 0:00:05]} 50. Bg4 {[%clk 0:00:13]}  Rd2 {[%clk 0:00:04]} 51. Ke5 {[%clk 0:00:13]}  Ne8 {[%clk 0:00:05]} 52. Rc8 {[%clk 0:00:13]}  Re2+ {[%clk 0:00:06]} 53. Kd4 {[%clk 0:00:13]}  Kg7 {[%clk 0:00:06]} 54. Kd3 {[%clk 0:00:12]}  Re1 {[%clk 0:00:05]} 55. Kd2 {[%clk 0:00:13]}  Re5 {[%clk 0:00:05]} 56. Rd8 {[%clk 0:00:13]}  f5 {[%clk 0:00:04]} 57. gxf6+ {[%clk 0:00:11]}  Nxf6 {[%clk 0:00:04]} 58. Be6 {[%clk 0:00:11]}  Rh5 {[%clk 0:00:04]} 59. d6 {[%clk 0:00:11]}  Rxh4 {[%clk 0:00:05]} 60. Ke3 {[%clk 0:00:11]}  Rh1 {[%clk 0:00:04]} 61. d7 {[%clk 0:00:09]}  Re1+ {[%clk 0:00:04]} 62. Kd2 {[%clk 0:00:06]}  Rxe6 {[%clk 0:00:03]} 63. Rg8+ {[%clk 0:00:07]}  Kxg8 {[%clk 0:00:04]} 64. d8=Q+ {[%clk 0:00:07]}  Kf7 {[%clk 0:00:04]} 65. Qc7+ {[%clk 0:00:07]}  Re7 {[%clk 0:00:05]} 66. Qc4+ {[%clk 0:00:07]}  Kg7 {[%clk 0:00:05]} 67. Qc3 {[%clk 0:00:08]}  Rf7 {[%clk 0:00:05]} 68. Ke2 {[%clk 0:00:07]}  Kg8 {[%clk 0:00:06]} 69. Kf2 {[%clk 0:00:08]}  Ne4+ {[%clk 0:00:05]} 70. Kg2 {[%clk 0:00:06]}  Nxc3 {[%clk 0:00:06]} 0-1


[Site "https://www.chess.com"]

[Event "Titled Tuesday Blitz November 14 Early 2023"]
[White "FoxOnTheRun97"]
[Black "Zhigalko, Sergei"]
[BlackFideId "13502956"]
[WhiteElo "2624"]
[BlackElo "2892"]
[Result "0-1"]
[Round "4"]
[TimeControl "180+1"]
[Date "2023.11.14"]
[WhiteClock "0:00:00"]
[BlackClock "0:00:13"]
[Board "45"]

1. d4 {[%clk 0:03:00]}  Nf6 {[%clk 0:03:00]} 2. Bg5 {[%clk 0:03:00]}  d5 {[%clk 0:02:58]} 3. Bxf6 {[%clk 0:03:00]}  exf6 {[%clk 0:02:59]} 4. e3 {[%clk 0:03:00]}  Bd6 {[%clk 0:02:58]} 5. g3 {[%clk 0:03:00]}  O-O {[%clk 0:02:58]} 6. Bg2 {[%clk 0:03:01]}  c6 {[%clk 0:02:58]} 7. Ne2 {[%clk 0:03:01]}  Nd7 {[%clk 0:02:56]} 8. O-O {[%clk 0:03:01]}  f5 {[%clk 0:02:56]} 9. Qd3 {[%clk 0:02:59]}  Nf6 {[%clk 0:02:56]} 10. c4 {[%clk 0:03:00]}  Be6 {[%clk 0:02:47]} 11. cxd5 {[%clk 0:02:48]}  cxd5 {[%clk 0:02:45]} 12. Nbc3 {[%clk 0:02:46]}  Ne4 {[%clk 0:02:44]} 13. Nf4 {[%clk 0:02:40]}  Bxf4 {[%clk 0:02:38]} 14. exf4 {[%clk 0:02:40]}  Qb6 {[%clk 0:02:37]} 15. Na4 {[%clk 0:02:15]}  Qa5 {[%clk 0:02:33]} 16. b3 {[%clk 0:02:09]}  Bd7 {[%clk 0:02:33]} 17. Bxe4 {[%clk 0:01:32]}  Bb5 {[%clk 0:02:11]} 18. Qc3 {[%clk 0:01:07]}  Qxc3 {[%clk 0:02:10]} 19. Nxc3 {[%clk 0:01:08]}  Bxf1 {[%clk 0:02:11]} 20. Bxf5 {[%clk 0:01:04]}  Ba6 {[%clk 0:02:05]} 21. Nxd5 {[%clk 0:01:02]}  Rad8 {[%clk 0:02:04]} 22. Be4 {[%clk 0:00:50]}  Rd7 {[%clk 0:01:57]} 23. Bf3 {[%clk 0:00:41]}  Rfd8 {[%clk 0:01:55]} 24. Rc1 {[%clk 0:00:33]}  Kf8 {[%clk 0:01:50]} 25. Nb4 {[%clk 0:00:19]}  Rxd4 {[%clk 0:01:50]} 26. Nxa6 {[%clk 0:00:19]}  bxa6 {[%clk 0:01:51]} 27. Rc7 {[%clk 0:00:16]}  R4d7 {[%clk 0:01:49]} 28. Rc6 {[%clk 0:00:16]}  Rd6 {[%clk 0:01:49]} 29. Rc7 {[%clk 0:00:16]}  R8d7 {[%clk 0:01:49]} 30. Rc8+ {[%clk 0:00:17]}  Ke7 {[%clk 0:01:49]} 31. Kg2 {[%clk 0:00:17]}  Rd2 {[%clk 0:01:10]} 32. a4 {[%clk 0:00:14]}  Rb2 {[%clk 0:01:08]} 33. Rc3 {[%clk 0:00:10]}  Rdd2 {[%clk 0:01:07]} 34. Kh3 {[%clk 0:00:09]}  Rxf2 {[%clk 0:01:06]} 35. Be4 {[%clk 0:00:08]}  g6 {[%clk 0:01:04]} 36. Bd3 {[%clk 0:00:02]}  f5 {[%clk 0:00:50]} 37. g4 {[%clk 0:00:01]}  Rf3+ {[%clk 0:00:12]} 38. Kh4 {[%clk 0:00:01]}  Rxh2+ {[%clk 0:00:12]} 39. Kg5 {[%clk 0:00:00]}  Rhh3 {[%clk 0:00:13]} 0-1


[Site "https://www.chess.com"]

[Event "Titled Tuesday Blitz November 14 Early 2023"]
[White "Principe, Gerson"]
[Black "Mahdavi, Reza"]
[WhiteFideId "3804550"]
[BlackFideId "12595926"]
[WhiteElo "2622"]
[BlackElo "2886"]
[Result "0-1"]
[Round "4"]
[TimeControl "180+1"]
[Date "2023.11.14"]
[WhiteClock "0:00:00"]
[BlackClock "0:00:16"]
[Board "46"]

1. d4 {[%clk 0:03:00]}  Nf6 {[%clk 0:03:00]} 2. e3 {[%clk 0:03:01]}  g6 {[%clk 0:02:59]} 3. Nf3 {[%clk 0:03:01]}  Bg7 {[%clk 0:03:00]} 4. Be2 {[%clk 0:03:02]}  O-O {[%clk 0:03:01]} 5. O-O {[%clk 0:03:03]}  d6 {[%clk 0:03:02]} 6. b3 {[%clk 0:03:03]}  b6 {[%clk 0:03:02]} 7. Bb2 {[%clk 0:03:04]}  Bb7 {[%clk 0:03:03]} 8. c4 {[%clk 0:03:05]}  Nbd7 {[%clk 0:03:04]} 9. Nc3 {[%clk 0:03:05]}  Ne4 {[%clk 0:03:04]} 10. Rc1 {[%clk 0:03:06]}  e5 {[%clk 0:03:00]} 11. dxe5 {[%clk 0:03:02]}  dxe5 {[%clk 0:03:00]} 12. Qc2 {[%clk 0:02:58]}  Nxc3 {[%clk 0:02:54]} 13. Bxc3 {[%clk 0:02:57]}  Qe7 {[%clk 0:02:54]} 14. Rfd1 {[%clk 0:02:55]}  a5 {[%clk 0:02:54]} 15. Qb2 {[%clk 0:02:56]}  Rfe8 {[%clk 0:02:50]} 16. Ne1 {[%clk 0:02:38]}  Nc5 {[%clk 0:02:51]} 17. Bf3 {[%clk 0:02:20]}  Ne4 {[%clk 0:02:46]} 18. Bxe4 {[%clk 0:02:14]}  Bxe4 {[%clk 0:02:47]} 19. Rd2 {[%clk 0:02:15]}  Qg5 {[%clk 0:02:43]} 20. Rcd1 {[%clk 0:02:12]}  Bc6 {[%clk 0:02:26]} 21. a4 {[%clk 0:02:10]}  h5 {[%clk 0:02:26]} 22. h3 {[%clk 0:01:57]}  h4 {[%clk 0:02:25]} 23. Qc2 {[%clk 0:01:51]}  Bf8 {[%clk 0:02:24]} 24. Qd3 {[%clk 0:01:49]}  Bc5 {[%clk 0:01:59]} 25. Qe2 {[%clk 0:01:48]}  Qf5 {[%clk 0:01:43]} 26. Qg4 {[%clk 0:01:44]}  Qxg4 {[%clk 0:01:39]} 27. hxg4 {[%clk 0:01:45]}  f5 {[%clk 0:01:38]} 28. g5 {[%clk 0:01:09]}  f4 {[%clk 0:01:15]} 29. exf4 {[%clk 0:00:49]}  exf4 {[%clk 0:01:16]} 30. Nf3 {[%clk 0:00:40]}  h3 {[%clk 0:00:38]} 31. Ne5 {[%clk 0:00:21]}  Bxg2 {[%clk 0:00:37]} 32. Nxg6 {[%clk 0:00:21]}  Bc6 {[%clk 0:00:23]} 33. Nxf4 {[%clk 0:00:11]}  Re4 {[%clk 0:00:22]} 34. Nxh3 {[%clk 0:00:01]}  Rg4+ {[%clk 0:00:22]} 35. Kh2 {[%clk 0:00:02]}  Rg2+ {[%clk 0:00:21]} 36. Kh1 {[%clk 0:00:02]}  Rg3+ {[%clk 0:00:16]} 37. Rd5 {[%clk 0:00:02]}  Rxh3+ {[%clk 0:00:15]} 38. Kg2 {[%clk 0:00:00]}  Rxc3 {[%clk 0:00:16]} 0-1


[Site "https://www.chess.com"]

[Event "Titled Tuesday Blitz November 14 Early 2023"]
[White "Gontcharov, Vladislav"]
[Black "Beerdsen, Thomas"]
[WhiteFideId "4123492"]
[BlackFideId "1030108"]
[WhiteElo "2619"]
[BlackElo "2840"]
[Result "0-1"]
[Round "4"]
[TimeControl "180+1"]
[Date "2023.11.14"]
[WhiteClock "0:00:00"]
[BlackClock "0:00:16"]
[Board "47"]

1. d4 {[%clk 0:03:00]}  Nf6 {[%clk 0:02:59]} 2. c4 {[%clk 0:02:58]}  a6 {[%clk 0:03:00]} 3. Nc3 {[%clk 0:02:53]}  b5 {[%clk 0:03:00]} 4. cxb5 {[%clk 0:02:52]}  axb5 {[%clk 0:03:01]} 5. Nxb5 {[%clk 0:02:50]}  e5 {[%clk 0:03:02]} 6. dxe5 {[%clk 0:02:28]}  Ne4 {[%clk 0:03:02]} 7. Bd2 {[%clk 0:02:08]}  Nc6 {[%clk 0:02:45]} 8. Nf3 {[%clk 0:02:03]}  Nxd2 {[%clk 0:02:35]} 9. Qxd2 {[%clk 0:01:57]}  Bb4 {[%clk 0:02:35]} 10. Nc3 {[%clk 0:01:57]}  Qe7 {[%clk 0:02:27]} 11. a3 {[%clk 0:01:47]}  Nxe5 {[%clk 0:02:26]} 12. Nxe5 {[%clk 0:01:47]}  Qxe5 {[%clk 0:02:27]} 13. Rc1 {[%clk 0:01:46]}  Ba5 {[%clk 0:02:23]} 14. b4 {[%clk 0:01:16]}  Bb6 {[%clk 0:02:23]} 15. Qd5 {[%clk 0:01:13]}  Qf4 {[%clk 0:01:57]} 16. e3 {[%clk 0:01:05]}  Bxe3 {[%clk 0:01:58]} 17. fxe3 {[%clk 0:01:02]}  Qxe3+ {[%clk 0:01:59]} 18. Ne2 {[%clk 0:01:00]}  Rxa3 {[%clk 0:01:50]} 19. Qd4 {[%clk 0:00:49]}  Qg5 {[%clk 0:01:36]} 20. Qe4+ {[%clk 0:00:33]}  Kd8 {[%clk 0:01:36]} 21. Qf4 {[%clk 0:00:28]}  Qxf4 {[%clk 0:01:25]} 22. Nxf4 {[%clk 0:00:28]}  Re8+ {[%clk 0:01:21]} 23. Kd1 {[%clk 0:00:19]}  Bb7 {[%clk 0:01:21]} 24. Bc4 {[%clk 0:00:15]}  Re4 {[%clk 0:01:21]} 25. Rf1 {[%clk 0:00:10]}  d5 {[%clk 0:01:19]} 26. Be2 {[%clk 0:00:09]}  Rxb4 {[%clk 0:01:17]} 27. Nd3 {[%clk 0:00:08]}  Rd4 {[%clk 0:01:18]} 28. Rxf7 {[%clk 0:00:08]}  Rc4 {[%clk 0:00:40]} 29. Rxg7 {[%clk 0:00:03]}  Ba6 {[%clk 0:00:35]} 30. Rxc4 {[%clk 0:00:03]}  Bxc4 {[%clk 0:00:35]} 31. Nc1 {[%clk 0:00:03]}  Bxe2+ {[%clk 0:00:31]} 32. Nxe2 {[%clk 0:00:04]}  c5 {[%clk 0:00:30]} 33. Nf4 {[%clk 0:00:04]}  Ke8 {[%clk 0:00:29]} 34. Rxh7 {[%clk 0:00:03]}  c4 {[%clk 0:00:29]} 35. Nxd5 {[%clk 0:00:02]}  Rd3+ {[%clk 0:00:29]} 36. Kc2 {[%clk 0:00:02]}  Rxd5 {[%clk 0:00:30]} 37. g4 {[%clk 0:00:02]}  Rd4 {[%clk 0:00:30]} 38. h3 {[%clk 0:00:02]}  Rf4 {[%clk 0:00:30]} 39. g5 {[%clk 0:00:03]}  Kf8 {[%clk 0:00:29]} 40. g6 {[%clk 0:00:03]}  Kg8 {[%clk 0:00:29]} 41. h4 {[%clk 0:00:03]}  Rg4 {[%clk 0:00:23]} 42. h5 {[%clk 0:00:04]}  Rg5 {[%clk 0:00:19]} 43. Kc3 {[%clk 0:00:04]}  Rc5 {[%clk 0:00:20]} 44. h6 {[%clk 0:00:03]}  Rc6 {[%clk 0:00:17]} 45. Rg7+ {[%clk 0:00:03]}  Kh8 {[%clk 0:00:17]} 46. Rh7+ {[%clk 0:00:04]}  Kg8 {[%clk 0:00:17]} 47. Rg7+ {[%clk 0:00:03]}  Kh8 {[%clk 0:00:18]} 48. Kd2 {[%clk 0:00:00]}  c3+ {[%clk 0:00:17]} 49. Kc2 {[%clk 0:00:00]}  Rf6 {[%clk 0:00:16]} 0-1


[Site "https://www.chess.com"]

[Event "Titled Tuesday Blitz November 14 Early 2023"]
[White "Feuerstack, Aljoscha"]
[Black "mind1mover"]
[WhiteFideId "4681932"]
[WhiteElo "2617"]
[BlackElo "2840"]
[Result "0-1"]
[Round "4"]
[TimeControl "180+1"]
[Date "2023.11.14"]
[WhiteClock "0:00:00"]
[BlackClock "0:00:10"]
[Board "48"]

1. e4 {[%clk 0:02:57]}  Nc6 {[%clk 0:03:00]} 2. Bc4 {[%clk 0:02:53]}  Nf6 {[%clk 0:02:58]} 3. d3 {[%clk 0:02:51]}  e6 {[%clk 0:02:58]} 4. Nf3 {[%clk 0:02:35]}  d5 {[%clk 0:02:56]} 5. exd5 {[%clk 0:02:36]}  Nxd5 {[%clk 0:02:55]} 6. a3 {[%clk 0:02:23]}  Be7 {[%clk 0:02:54]} 7. O-O {[%clk 0:02:23]}  O-O {[%clk 0:02:55]} 8. Re1 {[%clk 0:02:22]}  b6 {[%clk 0:02:54]} 9. Nbd2 {[%clk 0:02:20]}  Bb7 {[%clk 0:02:54]} 10. Ne4 {[%clk 0:02:17]}  h6 {[%clk 0:02:51]} 11. d4 {[%clk 0:01:57]}  Nf6 {[%clk 0:02:40]} 12. Ng3 {[%clk 0:01:55]}  Bd6 {[%clk 0:02:31]} 13. c3 {[%clk 0:01:31]}  Ne7 {[%clk 0:02:28]} 14. Bd3 {[%clk 0:01:30]}  c5 {[%clk 0:02:23]} 15. Ne5 {[%clk 0:01:28]}  cxd4 {[%clk 0:02:08]} 16. cxd4 {[%clk 0:01:29]}  Nc6 {[%clk 0:01:59]} 17. Nf3 {[%clk 0:01:02]}  Rc8 {[%clk 0:01:46]} 18. Be3 {[%clk 0:00:47]}  Rc7 {[%clk 0:01:16]} 19. Qd2 {[%clk 0:00:41]}  Bxg3 {[%clk 0:01:10]} 20. hxg3 {[%clk 0:00:38]}  Ng4 {[%clk 0:00:54]} 21. Bf4 {[%clk 0:00:37]}  Rd7 {[%clk 0:00:55]} 22. Bb5 {[%clk 0:00:36]}  a6 {[%clk 0:00:45]} 23. Bxc6 {[%clk 0:00:27]}  Bxc6 {[%clk 0:00:46]} 24. Rac1 {[%clk 0:00:25]}  Bxf3 {[%clk 0:00:38]} 25. gxf3 {[%clk 0:00:26]}  Rxd4 {[%clk 0:00:39]} 26. Qc3 {[%clk 0:00:25]}  Rxf4 {[%clk 0:00:31]} 27. gxf4 {[%clk 0:00:24]}  Nf6 {[%clk 0:00:31]} 28. Red1 {[%clk 0:00:19]}  Nd5 {[%clk 0:00:31]} 29. Qe5 {[%clk 0:00:18]}  Qh4 {[%clk 0:00:29]} 30. f5 {[%clk 0:00:17]}  Qg5+ {[%clk 0:00:22]} 31. Kf1 {[%clk 0:00:16]}  Nf4 {[%clk 0:00:21]} 32. Rc4 {[%clk 0:00:09]}  Qg2+ {[%clk 0:00:15]} 33. Ke1 {[%clk 0:00:09]}  Qg1+ {[%clk 0:00:14]} 34. Kd2 {[%clk 0:00:10]}  Rd8+ {[%clk 0:00:15]} 35. Rd4 {[%clk 0:00:08]}  Qxf2+ {[%clk 0:00:15]} 36. Kc3 {[%clk 0:00:00]}  Rxd4 {[%clk 0:00:10]} 0-1


[Site "https://www.chess.com"]

[Event "Titled Tuesday Blitz November 14 Early 2023"]
[White "Arslanov, Shamil"]
[Black "Mikaelyan, Arman"]
[WhiteFideId "4192826"]
[BlackFideId "13304852"]
[WhiteElo "2617"]
[BlackElo "2831"]
[Result "1-0"]
[Round "4"]
[TimeControl "180+1"]
[Date "2023.11.14"]
[WhiteClock "0:00:14"]
[BlackClock "0:00:09"]
[Board "49"]

1. d4 {[%clk 0:02:58]}  Nf6 {[%clk 0:02:59]} 2. f3 {[%clk 0:02:57]}  d5 {[%clk 0:02:57]} 3. e4 {[%clk 0:02:57]}  dxe4 {[%clk 0:02:53]} 4. Nc3 {[%clk 0:02:57]}  exf3 {[%clk 0:02:39]} 5. Nxf3 {[%clk 0:02:58]}  g6 {[%clk 0:02:39]} 6. Bc4 {[%clk 0:02:56]}  Bg7 {[%clk 0:02:40]} 7. h4 {[%clk 0:02:55]}  c5 {[%clk 0:02:30]} 8. d5 {[%clk 0:02:31]}  Bg4 {[%clk 0:02:27]} 9. Bg5 {[%clk 0:02:28]}  Nbd7 {[%clk 0:02:27]} 10. Qe2 {[%clk 0:02:26]}  O-O {[%clk 0:02:23]} 11. O-O-O {[%clk 0:02:24]}  a6 {[%clk 0:02:13]} 12. d6 {[%clk 0:02:20]}  e6 {[%clk 0:02:07]} 13. Qe3 {[%clk 0:02:08]}  b5 {[%clk 0:02:05]} 14. Be2 {[%clk 0:02:08]}  b4 {[%clk 0:02:06]} 15. Ne4 {[%clk 0:02:07]}  Qa5 {[%clk 0:02:02]} 16. Kb1 {[%clk 0:02:01]}  Nd5 {[%clk 0:02:02]} 17. Rxd5 {[%clk 0:01:53]}  exd5 {[%clk 0:02:02]} 18. Nf2 {[%clk 0:01:52]}  Rfe8 {[%clk 0:01:58]} 19. Be7 {[%clk 0:01:52]}  Bf5 {[%clk 0:01:55]} 20. Bd3 {[%clk 0:01:52]}  Bxd3 {[%clk 0:01:48]} 21. Nxd3 {[%clk 0:01:50]}  c4 {[%clk 0:01:45]} 22. Nc1 {[%clk 0:01:42]}  Rab8 {[%clk 0:01:18]} 23. h5 {[%clk 0:01:39]}  Qb6 {[%clk 0:01:11]} 24. Qg5 {[%clk 0:01:31]}  h6 {[%clk 0:00:52]} 25. Qg4 {[%clk 0:01:27]}  Rxe7 {[%clk 0:00:49]} 26. dxe7 {[%clk 0:01:08]}  Qf6 {[%clk 0:00:50]} 27. c3 {[%clk 0:01:06]}  bxc3 {[%clk 0:00:48]} 28. Qxd7 {[%clk 0:00:59]}  Rxb2+ {[%clk 0:00:14]} 29. Ka1 {[%clk 0:00:59]}  c2 {[%clk 0:00:13]} 30. e8=Q+ {[%clk 0:00:51]}  Kh7 {[%clk 0:00:14]} 31. hxg6+ {[%clk 0:00:35]}  Qxg6 {[%clk 0:00:14]} 32. Rxh6+ {[%clk 0:00:27]}  Qxh6 {[%clk 0:00:07]} 33. Qf5+ {[%clk 0:00:23]}  Qg6 {[%clk 0:00:08]} 34. Ng5+ {[%clk 0:00:19]}  Kh6 {[%clk 0:00:08]} 35. Nxf7+ {[%clk 0:00:15]}  Qxf7 {[%clk 0:00:09]} 36. Qe3# {[%clk 0:00:14]} 1-0


[Site "https://www.chess.com"]

[Event "Titled Tuesday Blitz November 14 Early 2023"]
[White "Szpar, Milosz"]
[Black "Janaszak, Dawid"]
[WhiteFideId "1184989"]
[BlackFideId "1119206"]
[WhiteElo "2820"]
[BlackElo "2611"]
[Result "1-0"]
[Round "4"]
[TimeControl "180+1"]
[Date "2023.11.14"]
[WhiteClock "0:00:10"]
[BlackClock "0:00:03"]
[Board "51"]

1. e4 {[%clk 0:03:00]}  c5 {[%clk 0:02:58]} 2. Nf3 {[%clk 0:02:59]}  Nc6 {[%clk 0:02:58]} 3. Bb5 {[%clk 0:02:54]}  e5 {[%clk 0:02:57]} 4. O-O {[%clk 0:02:52]}  Nge7 {[%clk 0:02:57]} 5. Nc3 {[%clk 0:02:49]}  g6 {[%clk 0:02:55]} 6. d3 {[%clk 0:02:49]}  Bg7 {[%clk 0:02:55]} 7. Bg5 {[%clk 0:02:49]}  h6 {[%clk 0:02:49]} 8. Bxe7 {[%clk 0:02:49]}  Nxe7 {[%clk 0:02:45]} 9. a3 {[%clk 0:02:48]}  O-O {[%clk 0:02:45]} 10. Bc4 {[%clk 0:02:48]}  d6 {[%clk 0:02:40]} 11. Nd5 {[%clk 0:02:48]}  Kh8 {[%clk 0:02:35]} 12. Nd2 {[%clk 0:02:47]}  f5 {[%clk 0:02:29]} 13. Nxe7 {[%clk 0:02:46]}  Qxe7 {[%clk 0:02:29]} 14. Bd5 {[%clk 0:02:47]}  f4 {[%clk 0:02:28]} 15. c3 {[%clk 0:02:41]}  Rb8 {[%clk 0:02:16]} 16. b4 {[%clk 0:02:40]}  g5 {[%clk 0:02:11]} 17. h3 {[%clk 0:02:24]}  f3 {[%clk 0:02:12]} 18. Nxf3 {[%clk 0:02:18]}  g4 {[%clk 0:02:12]} 19. hxg4 {[%clk 0:02:18]}  Bxg4 {[%clk 0:02:13]} 20. Nxe5 {[%clk 0:02:15]}  Bxd1 {[%clk 0:01:34]} 21. Ng6+ {[%clk 0:02:15]}  Kh7 {[%clk 0:01:34]} 22. Nxe7 {[%clk 0:02:15]}  Be2 {[%clk 0:01:35]} 23. Rfc1 {[%clk 0:02:07]}  Bxd3 {[%clk 0:01:24]} 24. Nf5 {[%clk 0:01:55]}  Be5 {[%clk 0:01:17]} 25. bxc5 {[%clk 0:01:27]}  dxc5 {[%clk 0:01:14]} 26. Ra2 {[%clk 0:01:28]}  b6 {[%clk 0:01:05]} 27. c4 {[%clk 0:01:27]}  b5 {[%clk 0:01:00]} 28. cxb5 {[%clk 0:01:21]}  Rxb5 {[%clk 0:00:57]} 29. g3 {[%clk 0:01:13]}  Rfb8 {[%clk 0:00:44]} 30. Rd2 {[%clk 0:01:09]}  Rb1 {[%clk 0:00:39]} 31. Rxb1 {[%clk 0:01:01]}  Rxb1+ {[%clk 0:00:38]} 32. Kg2 {[%clk 0:00:52]}  c4 {[%clk 0:00:38]} 33. Ne3 {[%clk 0:00:44]}  Rc1 {[%clk 0:00:26]} 34. Kf3 {[%clk 0:00:37]}  Bc3 {[%clk 0:00:23]} 35. Rd1 {[%clk 0:00:29]}  Rxd1 {[%clk 0:00:24]} 36. Nxd1 {[%clk 0:00:30]}  Bd4 {[%clk 0:00:21]} 37. Ne3 {[%clk 0:00:26]}  c3 {[%clk 0:00:20]} 38. Bb3 {[%clk 0:00:26]}  Bc5 {[%clk 0:00:15]} 39. a4 {[%clk 0:00:24]}  a5 {[%clk 0:00:13]} 40. Bc2 {[%clk 0:00:18]}  Bxe3 {[%clk 0:00:04]} 41. Bxd3 {[%clk 0:00:19]}  Bc5 {[%clk 0:00:04]} 42. e5+ {[%clk 0:00:16]}  Kg7 {[%clk 0:00:04]} 43. Ke2 {[%clk 0:00:15]}  Bd4 {[%clk 0:00:05]} 44. f4 {[%clk 0:00:15]}  Kf7 {[%clk 0:00:04]} 45. Kf3 {[%clk 0:00:15]}  Ke7 {[%clk 0:00:03]} 46. Ke4 {[%clk 0:00:16]}  Bf2 {[%clk 0:00:03]} 47. g4 {[%clk 0:00:15]}  Bg3 {[%clk 0:00:04]} 48. Bc2 {[%clk 0:00:13]}  Bf2 {[%clk 0:00:04]} 49. Bb3 {[%clk 0:00:13]}  Bg3 {[%clk 0:00:04]} 50. f5 {[%clk 0:00:14]}  Bh2 {[%clk 0:00:04]} 51. f6+ {[%clk 0:00:14]}  Kf8 {[%clk 0:00:04]} 52. Kf5 {[%clk 0:00:13]}  Bg1 {[%clk 0:00:04]} 53. e6 {[%clk 0:00:13]}  Bc5 {[%clk 0:00:04]} 54. Kg6 {[%clk 0:00:12]}  Bb4 {[%clk 0:00:04]} 55. Kxh6 {[%clk 0:00:10]}  Ba3 {[%clk 0:00:04]} 56. g5 {[%clk 0:00:10]}  Bb4 {[%clk 0:00:03]} 57. g6 {[%clk 0:00:10]} 1-0


[Site "https://www.chess.com"]

[Event "Titled Tuesday Blitz November 14 Early 2023"]
[White "Xu, Yi"]
[Black "Skatchkov, Valery"]
[WhiteFideId "8605564"]
[BlackFideId "24195812"]
[WhiteElo "2811"]
[BlackElo "2598"]
[Result "1-0"]
[Round "4"]
[TimeControl "180+1"]
[Date "2023.11.14"]
[WhiteClock "0:00:15"]
[BlackClock "0:00:02"]
[Board "55"]

1. d4 {[%clk 0:02:59]}  Nf6 {[%clk 0:02:57]} 2. c4 {[%clk 0:02:58]}  e6 {[%clk 0:02:58]} 3. Nc3 {[%clk 0:02:57]}  d5 {[%clk 0:02:56]} 4. cxd5 {[%clk 0:02:56]}  exd5 {[%clk 0:02:55]} 5. Bg5 {[%clk 0:02:55]}  Bb4 {[%clk 0:02:55]} 6. e3 {[%clk 0:02:53]}  h6 {[%clk 0:02:54]} 7. Bh4 {[%clk 0:02:53]}  g5 {[%clk 0:02:53]} 8. Bg3 {[%clk 0:02:53]}  Ne4 {[%clk 0:02:53]} 9. Ne2 {[%clk 0:02:51]}  h5 {[%clk 0:02:53]} 10. h3 {[%clk 0:02:44]}  h4 {[%clk 0:02:48]} 11. Be5 {[%clk 0:02:41]}  f6 {[%clk 0:02:38]} 12. Bh2 {[%clk 0:02:41]}  g4 {[%clk 0:02:38]} 13. hxg4 {[%clk 0:02:29]}  Nc6 {[%clk 0:02:08]} 14. f3 {[%clk 0:02:28]}  Ng5 {[%clk 0:01:58]} 15. a3 {[%clk 0:02:21]}  Bd6 {[%clk 0:01:57]} 16. Bxd6 {[%clk 0:02:13]}  Qxd6 {[%clk 0:01:58]} 17. Nf4 {[%clk 0:02:13]}  Ne7 {[%clk 0:01:55]} 18. Qb3 {[%clk 0:02:01]}  Bd7 {[%clk 0:01:49]} 19. Qxb7 {[%clk 0:01:56]}  Kf7 {[%clk 0:01:44]} 20. Qa6 {[%clk 0:01:50]}  c6 {[%clk 0:01:38]} 21. Bd3 {[%clk 0:01:44]}  Rab8 {[%clk 0:01:31]} 22. Nb5 {[%clk 0:01:24]}  Rxb5 {[%clk 0:01:25]} 23. Bxb5 {[%clk 0:01:23]}  Bc8 {[%clk 0:01:25]} 24. Qxa7 {[%clk 0:01:11]}  cxb5 {[%clk 0:01:25]} 25. Rc1 {[%clk 0:01:10]}  Ne6 {[%clk 0:01:22]} 26. Nxe6 {[%clk 0:01:06]}  Qg3+ {[%clk 0:01:11]} 27. Kf1 {[%clk 0:01:06]}  h3 {[%clk 0:01:04]} 28. Nd8+ {[%clk 0:00:48]}  Ke8 {[%clk 0:01:04]} 29. Ke2 {[%clk 0:00:44]}  Qxg2+ {[%clk 0:00:47]} 30. Kd3 {[%clk 0:00:44]}  Qxf3 {[%clk 0:00:23]} 31. Nb7 {[%clk 0:00:39]}  Bxg4 {[%clk 0:00:17]} 32. Nd6+ {[%clk 0:00:38]}  Kf8 {[%clk 0:00:16]} 33. Kc2 {[%clk 0:00:31]}  Rh7 {[%clk 0:00:12]} 34. Kb1 {[%clk 0:00:29]}  h2 {[%clk 0:00:13]} 35. Qb8+ {[%clk 0:00:25]}  Kg7 {[%clk 0:00:13]} 36. Ne8+ {[%clk 0:00:25]}  Kg6 {[%clk 0:00:12]} 37. Rxh2 {[%clk 0:00:23]}  Rxh2 {[%clk 0:00:08]} 38. Qxh2 {[%clk 0:00:23]}  Qxe3 {[%clk 0:00:08]} 39. Qh8 {[%clk 0:00:16]}  Qe4+ {[%clk 0:00:07]} 40. Ka2 {[%clk 0:00:15]}  Kf7 {[%clk 0:00:02]} 41. Nd6+ {[%clk 0:00:15]} 1-0


[Site "https://www.chess.com"]